fUST/lending_fUST_20250824
["ID","MTS","AMOUNT","RATE_DAILY","PERIOD"]
[381052957,1755977439890,-151.0,0.00050699,120]
[381052959,1755977439900,-500.0,0.00050699,120]
[381052961,1755977439910,-151.0,0.00050699,120]
[381052963,1755977439921,-151.0,0.00050699,120]
[381052965,1755977439931,-300.0,0.00050699,120]
[381052967,1755977439940,-300.0,0.00050699,120]
[381052969,1755977439949,-250.0,0.00050699,120]
[381052971,1755977439959,-16000.0,0.00050699,120]
[381052973,1755977439968,-370000.0,0.000507,2]
[381052976,1755977439977,-391.4,0.000507,30]
[381052978,1755977439987,-225.73,0.00050712,120]
[381052980,1755977439996,-500.0,0.00050765,10]
[381052982,1755977440006,-1000.0,0.00050765,10]
[381052984,1755977440015,-1000.0,0.00050765,10]
[381052986,1755977440024,-20968.7217999,0.0005079,4]
[381052988,1755977440034,-206.0,0.0005079,2]
[381052990,1755977440043,-206.0,0.0005079,2]
[381052992,1755977440052,-151.0,0.0005079,120]
[381052994,1755977440061,-471.412145,0.0005079,120]
[381052996,1755977440071,-471.412145,0.0005079,120]
[381052998,1755977440080,-151.0,0.0005079,120]
[381053000,1755977440089,-471.412145,0.0005079,120]
[381053002,1755977440099,-151.0,0.0005079,120]
[381053003,1755977440108,-471.412145,0.0005079,120]
[381053006,1755977440118,-151.0,0.0005079,120]
[381053007,1755977440127,-151.0,0.0005079,120]
[381053011,1755977440138,-260.361325,0.0005079,15]
[381053013,1755977440147,-260.361325,0.0005079,15]
[381053015,1755977440156,-260.361325,0.0005079,15]
[381053017,1755977440167,-260.361325,0.0005079,15]
[381053018,1755977440176,-166.349773,0.0005079,120]
[381053020,1755977440185,-166.349773,0.0005079,120]
[381053022,1755977440195,-166.349773,0.0005079,120]
[381053024,1755977440204,-166.349773,0.0005079,120]
[381053026,1755977440213,-151.0,0.0005079,120]
[381053029,1755977440222,-151.0,0.0005079,120]
[381053031,1755977440232,-228.618264,0.0005079,120]
[381053033,1755977440241,-1640.743855,0.0005079,120]
[381053035,1755977440251,-610.323732,0.0005079,120]
[381053037,1755977440259,-1640.743855,0.0005079,120]
[381053039,1755977440268,-610.323732,0.0005079,120]
[381053041,1755977440277,-1640.743855,0.0005079,120]
[381053043,1755977440285,-610.323732,0.0005079,120]
[381053045,1755977440293,-1640.743855,0.0005079,120]
[381053047,1755977440303,-151.0,0.0005079,120]
[381053049,1755977440312,-610.323732,0.0005079,120]
[381053051,1755977440321,-151.0,0.0005079,120]
[381053053,1755977440330,-174.0131738,0.000508,47]
[381053055,1755977440339,-36441.87611877,0.000508,120]
[381053057,1755977440348,-902.41,0.000508,14]
[381053059,1755977440357,-500.0,0.000508,30]
[381053061,1755977440367,-500.0,0.000508,30]
[381053063,1755977440375,-41937.4435998,0.0005089,4]
[381053065,1755977440385,-49968.87283492,0.000509,120]
[381053120,1755977440879,-82966.46171978,0.000509,120]
[381053206,1755977441685,-151.0,0.00027205,2]
[381053209,1755977441696,-151.0,0.00027205,2]
[381053211,1755977441706,-151.0,0.000293,2]
[381053213,1755977441716,-151.0,0.000293,2]
[381053215,1755977441725,-151.0,0.00036234,2]
[381053217,1755977441734,-151.0,0.00042234,2]
[381053219,1755977441743,-222.332284,0.0005079,120]
[381053221,1755977441753,-188.06041649,0.000509,120]
[381053223,1755977441764,-423.54996,0.000509,120]
[381053225,1755977441775,-3369.12503415,0.000509,120]
[381053392,1755977443349,-199.0,0.00028333,10]
[381053394,1755977443361,-156.0,0.000291,2]
[381053395,1755977443374,-844.0,0.000291,2]
[381053396,1755977443384,-151.0,0.0004333,2]
[381053397,1755977443393,-151.0,0.00044537,2]
[381053398,1755977443402,-151.0,0.00048234,2]
[381053399,1755977443411,-151.0,0.00049276,2]
[381053400,1755977443421,-151.0,0.000507,120]
[381053401,1755977443431,-500.0,0.000507,120]
[381053402,1755977443441,-151.0,0.0005079,120]
[381053403,1755977443450,-3042.092775,0.000509,120]
[381053404,1755977443522,-151.0,0.0005079,120]
[381053405,1755977443532,-10103.60361471,0.000509,120]
[381053665,1755977446234,-508.89332001,0.00024953,3]
[381053667,1755977446246,-1664.85236532,0.00024953,3]
[381053673,1755977446290,-2826.25431467,0.00024953,3]
[381053675,1755977446299,-175.68787048,0.00029238,2]
[381053677,1755977446308,-151.0,0.000507,120]
[381053679,1755977446318,-151.0,0.0005079,120]
[381053681,1755977446327,-605.21964252,0.000509,120]
[381053683,1755977446338,-499.39372774,0.000509,120]
[381053902,1755977450790,213.74826889,0.000199,2]
[381054123,1755977462515,1522.61648718,0.00024,3]
[381054124,1755977466646,-213.74826871,0.00021627,2]
[381054125,1755977485063,5000.0,0.00023,3]
[381054126,1755977485710,-191.10307173,0.00024,3]
[381054127,1755977488132,-160.0,0.00023353,2]
[381054128,1755977489638,-53.74826871,0.00023353,2]
[381054129,1755977489661,-148.83207226,0.00024,3]
[381054130,1755977492989,-352.59658626,0.00024,3]
[381054131,1755977494597,-404.66014415,0.00024,3]
[381054132,1755977496073,-308.83385465,0.00024,3]
[381054133,1755977498652,-300.0,0.00024,3]
[381054134,1755977500737,-214.26673267,0.00024,3]
[381054135,1755977502383,-264.40347852,0.00024,3]
[381054136,1755977504975,-280.87622355,0.00024,3]
[381054137,1755977507477,-304.52364376,0.00024,3]
[381054138,1755977510090,-220.0,0.00024,3]
[381054139,1755977511977,-151.90456186,0.00024,3]
[381054140,1755977513688,-168.62254977,0.00024,3]
[381054141,1755977515397,-166.76059364,0.00024,3]
[381054142,1755977560587,-172.99193307,0.00024637,2]
[381054143,1755977560609,-27.00806693,0.00024637,2]
[381054144,1755977562866,-336.5504043,0.00024637,2]
[381054145,1755977565676,-24.5563724,0.00024637,2]
[381054146,1755977565720,-152.95568284,0.00024703,2]
[381054150,1755977615436,350.35203952,0.000199,2]
[381054151,1755977615587,350.35203938,0.00021627,2]
[381054152,1755977616841,-160.0,0.00023353,2]
[381054153,1755977618292,-190.35203938,0.00023353,2]
[381054154,1755977701273,-221.9223751,0.00023962,2]
[381054155,1755977703122,10000.01,0.00019599,2]
[381054156,1755977703144,9299.3059211,0.00019599,2]
[381054157,1755977703170,484.86385258,0.00019599,2]
[381054158,1755977703196,555.99799812,0.00019599,2]
[381054159,1755977703222,16747.39298423,0.00019599,2]
[381054160,1755977703934,-160.0,0.00023962,2]
[381054161,1755977707658,-296.44900564,0.00023722,3]
[381054162,1755977710220,-215.79911338,0.00023722,3]
[381054163,1755977711718,-276.95535707,0.00023722,3]
[381054164,1755977714195,-197.48672027,0.00023722,3]
[381054165,1755977718731,-260.76842805,0.00023722,3]
[381054166,1755977721634,-481.59239164,0.00023722,3]
[381054167,1755977724554,-249.29737897,0.00023722,3]
[381054168,1755977726041,-177.9260266,0.000234,2]
[381054169,1755977728192,-308.25049195,0.000234,2]
[381054170,1755977732729,-225.63755332,0.000234,2]
[381054171,1755977734676,-173.17619682,0.000234,2]
[381054172,1755977736157,-176.70759056,0.000234,2]
[381054173,1755977737653,-348.33026223,0.000234,2]
[381054174,1755977739656,-176.60553854,0.000234,2]
[381054175,1755977741194,-309.44543974,0.000234,2]
[381054176,1755977743380,-184.55775529,0.000234,2]
[381054177,1755977746458,-154.45464168,0.000233,2]
[381054178,1755977747339,220.0,0.00022791,3]
[381054179,1755977749505,-18.53729138,0.000233,2]
[381054180,1755977749526,-231.41775674,0.000234,2]
[381054181,1755977750950,-310.75863233,0.000234,2]
[381054182,1755977755828,-216.55947949,0.000234,2]
[381054183,1755977757301,-160.62727639,0.000234,2]
[381054184,1755977757345,-211.555679,0.000234,2]
[381054185,1755977758689,-220.0,0.000234,2]
[381054186,1755977765699,-240.94721516,0.000234,2]
[381054187,1755977768294,-170.5846242,0.000234,2]
[381054188,1755977769781,-154.68283585,0.000234,2]
[381054189,1755977771766,-152.12466072,0.000234,2]
[381054190,1755977773805,-301.58456872,0.000234,2]
[381054191,1755977777524,-172.62340555,0.000234,2]
[381054192,1755977779127,-345.32536237,0.000234,2]
[381054198,1755977781858,315.3168355,0.000199,2]
[381054199,1755977782237,-254.28348485,0.000234,2]
[381054200,1755977784259,-160.0,0.00021627,2]
[381054201,1755977786275,-155.31683544,0.00021627,2]
[381054202,1755977786300,-315.31683544,0.00023353,2]
[381054203,1755977786321,-52.03830935,0.000234,2]
[381054204,1755977787749,-348.29738527,0.000234,2]
[381054205,1755977789326,-160.61025605,0.00023253,2]
[381054206,1755977792760,-12.87380961,0.00023253,2]
[381054207,1755977792782,-336.06756069,0.000234,2]
[381054208,1755977795898,-39.88490827,0.000234,2]
[381054209,1755977795923,-440.11509173,0.00023722,3]
[381054210,1755977797976,-210.87415587,0.00023722,3]
[381054211,1755977801024,-237.54165251,0.00023722,3]
[381054212,1755977804220,-309.42071946,0.00023722,3]
[381054213,1755977807310,-226.10928934,0.00023722,3]
[381054214,1755977810099,-331.22379702,0.00023722,3]
[381054215,1755977815146,5000.0,0.00019178,2]
[381054216,1755977819847,-257.67604671,0.00023591,2]
[381054217,1755977822939,-136.95199239,0.00023591,2]
[381054218,1755977822962,-96.43868338,0.00023722,3]
[381054219,1755977825647,-369.5443038,0.00023722,3]
[381054220,1755977827978,-228.062631,0.00023722,3]
[381054221,1755977830001,-328.90519694,0.00023722,3]
[381054222,1755977834869,-243.41608393,0.00023722,3]
[381054223,1755977834890,-220.0,0.0002376,3]
[381054224,1755977834912,-27.5335979,0.00023962,2]
[381054225,1755977834933,-76.91099613,0.00023996,2]
[381054226,1755977838415,-158.60383603,0.00023996,2]
[381054227,1755977838472,46.76387329,0.00023485,3]
[381054228,1755977847038,-459.58976445,0.00023485,3]
[381054229,1755977850362,-160.0,0.00023485,3]
[381054230,1755977852674,-404.48048901,0.00023485,3]
[381054231,1755977855197,-205.30750649,0.00023485,3]
[381054232,1755977858950,-376.96693533,0.00023485,3]
[381054233,1755977860476,-318.09231369,0.00023485,3]
[381054234,1755977863074,-390.76187952,0.00023485,3]
[381054235,1755977865156,-200.0,0.00023368,10]
[381054236,1755977867231,-102.45563732,0.00023368,10]
[381054237,1755977867253,-62.58530928,0.00023485,3]
[381054238,1755977870564,-158.57424118,0.00023268,10]
[381054239,1755977872532,-40.42575882,0.00023268,10]
[381054240,1755977872556,-137.38987945,0.00023485,3]
[381054241,1755977873998,-216.1680267,0.00023485,3]
[381054242,1755977875598,-226.55078086,0.00023485,3]
[381054243,1755977878231,-481.2842672,0.00023485,3]
[381054244,1755977880359,210.58,0.00016434,2]
[381054245,1755977881012,210.58,0.00016434,2]
[381054246,1755977881300,210.58,0.00016434,2]
[381054247,1755977881385,-165.89224048,0.00023485,3]
[381054248,1755977883958,-273.55022294,0.00023485,3]
[381054249,1755977885945,-167.0124152,0.00023485,3]
[381054250,1755977887478,-247.54462276,0.00023485,3]
[381054251,1755977889068,-221.07467357,0.00023485,3]
[381054252,1755977891119,-180.82409839,0.00023485,3]
[381054253,1755977893817,-172.74858224,0.00023485,3]
[381054254,1755977896427,-85.41211915,0.00023485,3]
[381054255,1755977896449,-142.28764224,0.0002376,3]
[381054256,1755977897948,-77.71235776,0.0002376,3]
[381054258,1755977912230,-155.79739033,0.00023712,2]
[381054262,1755977944519,-152.0,0.000235,2]
[381054263,1755977946646,-148.0,0.000235,2]
[381054264,1755977946676,-23.20368467,0.00023712,2]
[381054265,1755977949162,570.45657354,0.000199,2]
[381054266,1755977950997,-384.05572966,0.00021627,2]
[381054267,1755977952769,-186.40084368,0.00021627,2]
[381054268,1755977952803,-8.82137734,0.00023353,2]
[381054269,1755977954765,-217.00623575,0.00023353,2]
[381054270,1755977958337,-151.0,0.00023353,2]
[381054271,1755977961255,-187.41557551,0.00023353,2]
[381054272,1755977963086,-6.21338474,0.00023353,2]
[381054273,1755977998673,-154.7862842,0.00023709,2]
[381054274,1755978001553,-49.3990391,0.00023709,2]
[381054275,1755978098550,-183.99163667,0.00024042,3]
[381054276,1755978100944,-165.02603602,0.00024042,3]
[381054277,1755978104100,-187.41557551,0.00024042,3]
[381054278,1755978106678,-509.37384048,0.00024042,3]
[381054279,1755978108151,-172.62340554,0.00024042,3]
[381054280,1755978112691,-211.20282395,0.00024042,3]
[381054281,1755978114298,-375.710399,0.00024042,3]
[381054282,1755978115708,624.01587745,0.000199,2]
[381054283,1755978115881,-349.367667,0.00023353,2]
[381054284,1755978119421,-191.89004545,0.00021627,2]
[381054285,1755978124430,-432.12583194,0.00021627,2]
[381054286,1755978124454,-23.40070938,0.00023353,2]
[381054287,1755978126532,-213.7163675,0.00023353,2]
[381054288,1755978128733,-37.53113351,0.00023353,2]
[381054289,1755978128754,-128.46886649,0.00024042,3]
[381054290,1755978132470,-326.0,0.00024042,3]
[381054291,1755978134487,-184.82774391,0.00024042,3]
[381054292,1755978137037,-258.2798947,0.00024042,3]
[381054293,1755978139091,-249.32207413,0.00024042,3]
[381054294,1755978140708,-453.3750942,0.00024042,3]
[381054295,1755978142331,-159.52599272,0.00024042,3]
[381054296,1755978144904,-334.2625867,0.00024042,3]
[381054297,1755978148474,-217.40260384,0.00024042,3]
[381054298,1755978150018,-284.86336973,0.00024042,3]
[381054299,1755978151916,-261.05391916,0.00024042,3]
[381054300,1755978154290,-195.43037143,0.00024042,3]
[381054301,1755978156069,-141.84376582,0.00024042,3]
[381054302,1755978181706,-162.58216132,0.00023943,3]
[381054303,1755978182767,-152.0,0.00023943,3]
[381054304,1755978184935,-217.8193546,0.00023943,3]
[381054305,1755978187831,-219.03323599,0.00023943,3]
[381054306,1755978191480,-180.13495507,0.00023943,3]
[381054307,1755978193624,-178.00481879,0.00023943,3]
[381054308,1755978197337,-155.34809731,0.00023943,3]
[381054309,1755978198850,-206.51508165,0.00023943,3]
[381054310,1755978202107,-156.15012828,0.00023943,3]
[381054311,1755978204332,-172.62340555,0.00023943,3]
[381054312,1755978206386,-300.0,0.00023943,3]
[381054313,1755978208118,-200.0,0.00023943,3]
[381054314,1755978210206,-179.11559908,0.00023943,3]
[381054315,1755978213438,-214.43724243,0.00023943,3]
[381054316,1755978215559,-186.15682727,0.00023943,3]
[381054317,1755978218708,-247.94204768,0.00023943,3]
[381054318,1755978220190,-192.65190269,0.00023943,3]
[381054319,1755978222890,-167.71874772,0.00023943,3]
[381054320,1755978226942,-231.88663594,0.00023943,3]
[381054321,1755978228364,-327.30394625,0.00023943,3]
[381054322,1755978230472,-176.43113628,0.00023943,3]
[381054323,1755978234321,-274.37836369,0.00023943,3]
[381054324,1755978236338,-224.75293159,0.00023943,3]
[381054325,1755978238462,-224.6679322,0.00023943,3]
[381054326,1755978240524,-52.34544862,0.00023943,3]
[381054327,1755978245587,-296.19947045,0.00023704,3]
[381054328,1755978249315,-307.88072114,0.00023704,3]
[381054329,1755978251507,-158.66001389,0.00023704,3]
[381054330,1755978253896,-336.91988783,0.00023704,3]
[381054331,1755978260020,-204.18532328,0.00023704,3]
[381054332,1755978282610,608.4153911,0.000199,2]
[381054333,1755978283194,608.41539088,0.00021627,2]
[381054334,1755978284199,-165.06955657,0.00023353,2]
[381054335,1755978378994,164.628819,0.00013699,2]
[381054336,1755978390125,-186.77597198,0.00023353,2]
[381054337,1755978407178,-156.12054987,0.00023117,2]
[381054338,1755978409137,-81.53916803,0.00023117,2]
[381054339,1755978433124,5000.0,0.0002301,2]
[381054340,1755978446208,-233.39067577,0.00023473,2]
[381054341,1755978446228,-37.6062415,0.00023573,2]
[381054342,1755978448916,562.3065136,0.000199,2]
[381054343,1755978449578,562.30651358,0.00021627,2]
[381054344,1755978487434,-172.99193306,0.00023253,2]
[381054345,1755978558101,-5000.0,0.00023337,2]
[381054346,1755978558128,-562.30651358,0.00023353,2]
[381054347,1755978558152,-165.6493875,0.00023573,2]
[381054348,1755978566451,5000.0,0.00023914,2]
[381054349,1755978577622,1000.0,0.00023254,2]
[381054350,1755978582240,5000.0,0.00023914,2]
[381054351,1755978597391,412.58776214,0.00023894,2]
[381054352,1755978615979,506.07586228,0.000199,2]
[381054353,1755978616692,506.07586222,0.00021627,2]
[381054397,1755978632461,-506.07586222,0.00023353,2]
[381054399,1755978632471,-4587.41223786,0.00023894,2]
[381054401,1755978632480,-660.62982505,0.00024136,2]
[381054403,1755978632490,-1200.0,0.00024155,2]
[381054405,1755978632500,-3415.87472651,0.00024156,2]
[381054408,1755978632509,-300.0,0.00024252,2]
[381054411,1755978632519,-300.0,0.00024253,2]
[381054414,1755978632528,-300.0,0.00024253,2]
[381054416,1755978632538,-300.0,0.00024253,2]
[381054419,1755978632547,-300.0,0.00024253,2]
[381054422,1755978632557,-300.0,0.00024253,2]
[381054425,1755978632566,-500.30394841,0.00024254,2]
[381054428,1755978632575,-1200.0,0.00024254,2]
[381054431,1755978632585,-500.0,0.00024254,2]
[381054434,1755978632594,-500.0,0.00024254,2]
[381054437,1755978632603,-500.0,0.00024254,2]
[381054440,1755978632613,-500.0,0.00024254,2]
[381054443,1755978632623,-500.0,0.00024254,2]
[381054446,1755978632633,-500.0,0.00024254,2]
[381054449,1755978632642,-415.36850841,0.00024254,2]
[381054452,1755978632652,-500.0,0.00024254,2]
[381054454,1755978632661,-500.0,0.00024254,2]
[381054456,1755978632673,-500.0,0.00024254,2]
[381054458,1755978632682,-500.0,0.00024254,2]
[381054460,1755978632692,-500.0,0.00024254,2]
[381054462,1755978632702,-500.0,0.00024254,2]
[381054464,1755978632711,-500.0,0.00024254,2]
[381054466,1755978632722,-500.0,0.00024254,2]
[381054468,1755978632731,-539.961985,0.00024254,2]
[381054470,1755978632741,-500.0,0.00024254,2]
[381054472,1755978632753,-500.0,0.00024254,2]
[381054474,1755978632763,-372.44031352,0.00024254,2]
[381054476,1755978632772,-500.0,0.00024254,2]
[381054478,1755978632781,-500.0,0.00024254,2]
[381054480,1755978632790,-500.0,0.00024254,2]
[381054482,1755978632800,-500.0,0.00024254,2]
[381054484,1755978632809,-500.0,0.00024254,2]
[381054486,1755978632819,-500.0,0.00024254,2]
[381054488,1755978632828,-500.0,0.00024254,2]
[381054490,1755978632838,-506.39974111,0.00024254,2]
[381054492,1755978632847,-500.0,0.00024254,2]
[381054494,1755978632856,-558.55069566,0.00024254,2]
[381054496,1755978632865,-609.7902233,0.00024254,2]
[381054498,1755978632874,-500.0,0.00024254,2]
[381054500,1755978632883,-373.89799678,0.00024254,2]
[381054502,1755978632892,-500.0,0.00024254,2]
[381054504,1755978632902,-500.0,0.00024254,2]
[381054506,1755978632911,-140.56380374,0.00024254,2]
[381054509,1755978632938,-294.575,0.00024254,2]
[381054512,1755978632950,-64.86119626,0.00024254,2]
[381054514,1755978632959,-500.0,0.00024254,2]
[381054516,1755978632968,-399.6732215,0.00024254,2]
[381054576,1755978638419,-100.3267785,0.00024254,2]
[381054577,1755978638431,-169.91735678,0.00024254,2]
[381054578,1755978638443,-331.75586312,0.00024254,2]
[381054579,1755978638457,-168.24413688,0.00024254,2]
[381054580,1755978638468,-87.67706288,0.00024254,2]
[381054582,1755978638483,-412.32293712,0.00024254,2]
[381054583,1755978638494,-407.87706314,0.00024254,2]
[381054584,1755978638510,-92.12293686,0.00024254,2]
[381054585,1755978638523,-500.0,0.00024254,2]
[381054586,1755978638535,-500.0,0.00024254,2]
[381054587,1755978638546,-500.0,0.00024254,2]
[381054588,1755978638558,-500.0,0.00024254,2]
[381054589,1755978638569,-180.23950493,0.00024254,2]
[381054590,1755978638581,-500.0,0.00024254,2]
[381054591,1755978638593,-500.0,0.00024254,2]
[381054592,1755978638604,-500.0,0.00024254,2]
[381054593,1755978638615,-500.0,0.00024254,2]
[381054594,1755978638626,-500.0,0.00024254,2]
[381054595,1755978638637,-500.0,0.00024254,2]
[381054596,1755978638647,-500.0,0.00024254,2]
[381054597,1755978638659,-178.72647795,0.00024254,2]
[381054598,1755978638673,-321.27352205,0.00024254,2]
[381054599,1755978638685,-500.0,0.00024254,2]
[381054600,1755978638696,-500.0,0.00024254,2]
[381054601,1755978638707,-500.0,0.00024254,2]
[381054602,1755978638719,-500.0,0.00024254,2]
[381054603,1755978638729,-500.0,0.00024254,2]
[381054604,1755978638740,-500.0,0.00024254,2]
[381054605,1755978638752,-500.0,0.00024254,2]
[381054606,1755978638763,-500.0,0.00024254,2]
[381054607,1755978638775,-402.82553279,0.00024254,2]
[381054608,1755978638792,-500.0,0.00024254,2]
[381054609,1755978638804,-500.0,0.00024254,2]
[381054610,1755978638814,-500.0,0.00024255,2]
[381054611,1755978638825,-17353.95453541,0.00024255,2]
[381054612,1755978638843,-32646.04546459,0.00024255,2]
[381054613,1755978638854,-9076.5049782,0.00024256,2]
[381054614,1755978638865,-500.0,0.00024273,2]
[381054615,1755978638876,-500.0,0.00024273,2]
[381054616,1755978638887,-500.0,0.00024273,2]
[381054617,1755978638898,-500.0,0.00024273,2]
[381054618,1755978638909,-500.0,0.00024528,2]
[381054619,1755978638920,-160.0,0.00024683,2]
[381054620,1755978638931,-160.0,0.00024694,2]
[381054621,1755978638942,-5000.0,0.00024739,2]
[381054622,1755978638953,-500.0,0.00024773,2]
[381054623,1755978638963,-500.0,0.00024773,2]
[381054624,1755978638974,-500.0,0.00024773,2]
[381054625,1755978638985,-500.0,0.00024802,2]
[381054626,1755978638995,-1000.0,0.00024821,2]
[381054627,1755978639006,-1000.0,0.00024821,2]
[381054628,1755978639017,-1000.0,0.00024821,2]
[381054629,1755978639028,-500.0,0.00025076,2]
[381054630,1755978639039,-506.07586222,0.0002508,2]
[381054631,1755978639050,-1000.0,0.00025321,2]
[381054632,1755978639060,-500.0,0.0002535,2]
[381054633,1755978639071,-500.0,0.00025368,2]
[381054634,1755978639082,-1500.0,0.00025368,2]
[381054635,1755978639093,-1500.0,0.00025368,2]
[381054636,1755978639104,-360.0,0.00025554,2]
[381054637,1755978639115,-500.0,0.00025624,2]
[381054638,1755978639126,-1500.0,0.00025868,2]
[381054639,1755978639137,-713.36259871,0.0002588,2]
[381054640,1755978639147,-500.0,0.00025898,2]
[381054641,1755978639158,-7024.47736923,0.00025916,2]
[381054642,1755978639169,-627.18253757,0.00025916,2]
[381054643,1755978639179,-2000.0,0.00025916,2]
[381054644,1755978639190,-254.16193798,0.00025965,2]
[381054645,1755978639201,-500.0,0.00025965,2]
[381054646,1755978639212,-500.0,0.00025965,2]
[381054647,1755978639223,-500.0,0.00025965,2]
[381054648,1755978639234,-500.0,0.00025965,2]
[381054649,1755978639245,-434.4409436,0.00025965,2]
[381054650,1755978639256,-162.33,0.0002597,3]
[381054651,1755978639268,-252.41603684,0.00025973,2]
[381054652,1755978639278,-500.0,0.00025973,2]
[381054653,1755978639290,-500.0,0.00025973,2]
[381054654,1755978639300,-500.0,0.00025973,2]
[381054655,1755978639312,-500.0,0.00025973,2]
[381054656,1755978639323,-500.0,0.00025973,2]
[381054657,1755978639335,-500.0,0.00025973,2]
[381054658,1755978639346,-500.0,0.00025973,2]
[381054659,1755978639359,-501.43720702,0.00025973,2]
[381054660,1755978639370,-500.0,0.00025973,2]
[381054661,1755978639382,-500.0,0.00025973,2]
[381054662,1755978639393,-500.0,0.00025973,2]
[381054663,1755978639404,-175.16317157,0.00025973,2]
[381054664,1755978639414,-500.0,0.00025973,2]
[381054665,1755978639426,-500.0,0.00025973,2]
[381054666,1755978639437,-500.0,0.00025973,2]
[381054667,1755978639447,-500.0,0.00025973,2]
[381054668,1755978639458,-500.0,0.00025973,2]
[381054669,1755978639469,-500.0,0.00025973,2]
[381054670,1755978639480,-500.0,0.00025973,2]
[381054671,1755978639491,-500.0,0.00025973,2]
[381054672,1755978639502,-500.0,0.00025973,2]
[381054673,1755978639513,-500.0,0.00025973,2]
[381054674,1755978639524,-504.65042134,0.00025973,2]
[381054675,1755978639536,-548.2122517,0.00025973,2]
[381054676,1755978639546,-500.0,0.00025973,2]
[381054677,1755978639557,-500.0,0.00025973,2]
[381054678,1755978639568,-527.88255609,0.00025973,2]
[381054679,1755978639579,-500.0,0.00025973,2]
[381054680,1755978639590,-500.0,0.00025973,2]
[381054681,1755978639602,-501.00116031,0.00025973,2]
[381054682,1755978639613,-500.0,0.00025973,2]
[381054683,1755978639849,-500.0,0.00025973,2]
[381054684,1755978639874,-500.0,0.00025973,2]
[381054685,1755978639884,-596.17643667,0.00025979,2]
[381054686,1755978639893,-259.305,0.0002598,12]
[381054687,1755978639903,-487.0,0.0002598,3]
[381054688,1755978639912,-68423.8144592,0.0002598,2]
[381054689,1755978639922,-818.96,0.00025989,2]
[381054690,1755978639931,-100000.0,0.0002599,2]
[381054692,1755978639940,-713.3625987,0.0002611,2]
[381054694,1755978639950,-500.0,0.00026172,2]
[381054696,1755978639962,-34211.9072296,0.00026262,2]
[381054698,1755978639972,-420.0,0.00026294,2]
[381054699,1755978639982,-420.0,0.00026294,2]
[381054701,1755978639991,-420.0,0.00026294,2]
[381054703,1755978640000,-420.0,0.00026294,2]
[381054704,1755978640011,-300.0,0.00026294,2]
[381054706,1755978640020,-1680.0,0.00026295,2]
[381054707,1755978640030,-1680.0,0.0002631,2]
[381054708,1755978640039,-713.3625987,0.0002634,2]
[381054709,1755978640048,-1160.99966894,0.00026416,2]
[381054711,1755978640057,-515.53125299,0.00026446,2]
[381054713,1755978640067,-160.0,0.00026448,2]
[381054715,1755978640076,-376.14580871,0.00026448,2]
[381054717,1755978640086,-160.0,0.00026448,2]
[381054719,1755978640095,-160.0,0.00026448,2]
[381054721,1755978640105,-232.37252479,0.00026469,2]
[381054723,1755978640115,-844.50316758,0.00026511,2]
[381054725,1755978640124,-1000.0,0.00026521,2]
[381054727,1755978640134,-1000.0,0.00026521,2]
[381054729,1755978640144,-500.0,0.00026521,2]
[381054731,1755978640154,-502.51982832,0.00026521,2]
[381054732,1755978640163,-1000.0,0.00026521,2]
[381054734,1755978640173,-1000.0,0.00026521,2]
[381054736,1755978640182,-500.0,0.00026521,2]
[381054738,1755978640192,-1000.0,0.00026521,2]
[381054740,1755978640201,-356.87938461,0.00026521,2]